bitfinex-derivatives/quotes_SOLF0:USTF0_20240824
["timestamp","ask_amount","ask_price","bid_price","bid_amount"]
[1724462649106,3.31728238,152.52,152.48,3.32497681]
[1724462650205,3.2758,152.51,152.48,0.04857681]
[1724462651104,3.276,152.5,152.48,0.04857681]
[1724462651910,3.2762,152.49,152.48,0.04857681]
[1724462673325,20.12,152.5,152.42,26.2]
[1724462673522,20.12,152.46,152.42,26.2]
[1724462674320,20.16252836,152.46,152.42,26.24428299]
[1724462675119,23.43952836,152.46,152.42,29.52198299]
[1724462675319,20.16252836,152.46,152.42,26.24428299]
[1724462676536,3.2771,152.45,152.42,26.24428299]
[1724462677130,3.2773,152.44,152.42,26.24428299]
[1724462679230,3.2771,152.45,152.42,26.24428299]
[1724462680944,3.2771,152.45,152.42,29.52198299]
[1724462681234,3.2771,152.45,152.42,26.24428299]
[1724462683340,3.2771,152.45,152.42,0.04428299]
[1724462685237,3.2774,152.44,152.42,0.04428299]
[1724462686147,20.16252836,152.46,152.42,0.04428299]
[1724462686343,3.2775,152.43,152.42,0.04428299]
[1724462687645,6.4787354,152.43,152.42,0.04428299]
[1724462687846,3.2775,152.43,152.42,0.04428299]
[1724462695546,23.32546349,152.43,152.34,3.206119]
[1724462695947,3.2781,152.41,152.37,3.2787]
[1724462696348,3.2781,152.4,152.37,0.04150773]
[1724462697652,3.32247033,152.41,152.37,3.32020773]
[1724462697952,3.32247033,152.41,152.37,0.04150773]
[1724462698561,0.04447033,152.41,152.38,3.2786]
[1724462698953,3.32237033,152.41,152.38,3.2786]
[1724462699453,3.32237033,152.41,152.37,3.32020773]
[1724462699851,0.04447033,152.41,152.37,0.04150773]
[1724462701957,3.32257033,152.41,152.37,3.32030773]
[1724462702155,0.04447033,152.41,152.37,0.04150773]
[1724462702552,3.2781,152.4,152.37,0.04150773]
[1724462703554,3.32247033,152.41,152.37,3.32020773]
[1724462703748,0.04447033,152.41,152.37,0.04150773]
[1724462704180,3.2783,152.39,152.37,0.04150773]
[1724462705458,3.278,152.4,152.37,0.04150773]
[1724462706061,3.2782,152.39,152.37,0.04150773]
[1724462706359,0.04447033,152.41,152.37,3.32010773]
[1724462707074,0.04447033,152.41,152.37,0.04150773]
[1724462707861,3.32227033,152.41,152.37,0.04150773]
[1724462709067,3.32227033,152.41,152.37,3.32010773]
[1724462711570,0.04447033,152.41,152.37,0.04150773]
[1724462711771,0.04447033,152.41,152.38,1.2786]
[1724462713371,0.04447033,152.41,152.39,3.278]
[1724462715270,0.04447033,152.41,152.38,21.3986]
[1724462716772,0.04447033,152.41,152.39,3.2782]
[1724462716969,0.04447033,152.41,152.38,21.3986]
[1724462718377,0.04447033,152.41,152.4,3.2779]
[1724462723677,20.12,152.49,152.42,3.2775]
[1724462724273,3.2768,152.46,152.42,3.2775]
[1724462724786,3.31910666,152.46,152.42,3.32328213]
[1724462724982,3.2769,152.45,152.42,3.32328213]
[1724462725979,0.04230666,152.46,152.42,0.04578213]
[1724462726577,3.277,152.45,152.42,0.04578213]
[1724462726785,0.04230666,152.46,152.42,0.04578213]
[1724462727776,3.277,152.45,152.42,0.04578213]
[1724462729185,3.2773,152.43,152.42,0.04578213]
[1724462729386,0.04230666,152.46,152.42,0.04578213]
[1724462729980,3.2769,152.45,152.42,0.04578213]
[1724462730385,0.04230666,152.46,152.42,0.04578213]
[1724462730585,3.2769,152.45,152.42,0.04578213]
[1724462731288,20.12,152.45,152.42,0.04578213]
[1724462732588,3.2772,152.44,152.42,0.04578213]
[1724462733680,0.04230666,152.46,152.42,0.04578213]
[1724462735089,0.04230666,152.46,152.42,3.32308213]
[1724462735385,0.04230666,152.46,152.42,0.04578213]
[1724462736903,3.2769,152.45,152.42,0.04578213]
[1724462737698,3.31900666,152.46,152.42,0.04578213]
[1724462738099,0.04230666,152.46,152.42,3.32328213]
[1724462738495,0.04230666,152.46,152.43,3.22831525]
[1724462738698,0.04230666,152.46,152.43,24.72541525]
[1724462739000,0.04230666,152.46,152.43,21.4971]
[1724462739200,0.04230666,152.46,152.45,3.2769]
[1724462741503,0.04230666,152.46,152.44,3.277]
[1724462741707,0.04230666,152.46,152.43,1.3771]
[1724462742002,0.04230666,152.46,152.44,3.2769]
[1724462742617,0.04230666,152.46,152.45,3.2769]
[1724462743809,0.04230666,152.46,152.43,7.92273147]
[1724462744705,0.04230666,152.46,152.43,4.6542]
[1724462745105,0.04230666,152.46,152.44,3.2771]
[1724462746406,0.04230666,152.46,152.43,4.6544]
[1724462747616,0.04230666,152.46,152.44,3.277]
[1724462748813,0.04230666,152.46,152.43,1.3771]
[1724462749412,0.04230666,152.46,152.44,3.2769]
[1724462750215,0.04230666,152.46,152.45,3.2769]
[1724462750515,0.04230666,152.46,152.43,1.3771]
[1724462750716,0.04230666,152.46,152.44,3.2771]
[1724462754218,3.31900666,152.46,152.43,4.6543]
[1724462755322,0.04230666,152.46,152.43,4.6543]
[1724462755726,0.04230666,152.46,152.44,3.277]
[1724462759822,0.04230666,152.46,152.45,3.2769]
[1724462766123,1.3732,152.54,152.45,20.12]
[1724462767323,0.04607197,152.51,152.48,3.32603393]
[1724462767523,0.04607197,152.51,152.48,0.04993393]
[1724462768531,0.04607197,152.51,152.48,3.32613393]
[1724462769927,3.32167197,152.51,152.48,3.32613393]
[1724462770820,0.04607197,152.51,152.48,3.32613393]
[1724462773832,0.04607197,152.51,152.49,3.276]
[1724462775831,0.04607197,152.51,152.5,3.2758]
[1724462776926,0.04607197,152.51,152.49,4.6376]
[1724462781831,0.04607197,152.51,152.48,0.04993393]
[1724462782424,0.04607197,152.51,152.49,3.276]
[1724462783233,0.04607197,152.51,152.48,0.04993393]
[1724462783234,0.04607197,152.51,152.5,3.2758]
[1724462783426,0.04607197,152.51,152.5,23.3958]
[1724462784031,0.04607197,152.51,152.5,26.71914174]
[1724462788631,2.5657,152.58,152.5,23.44334174]
[1724462788930,2.5657,152.58,152.5,20.12]
[1724462789127,3.2747,152.56,152.52,3.2753]
[1724462789323,2.5657,152.58,152.5,20.12]
[1724462789532,2.5657,152.58,152.5,23.46801304]
[1724462789735,2.5657,152.58,152.52,0.05010459]
[1724462790336,3.2747,152.56,152.52,3.32530459]
[1724462794139,3.2747,152.56,152.53,3.2751]
[1724462796142,3.2744,152.57,152.52,0.05010459]
[1724462796835,3.2744,152.57,152.53,3.2752]
[1724462799743,3.2745,152.56,152.53,3.2752]
[1724462799940,1.2984,152.58,152.53,3.2752]
[1724462800643,1.2984,152.58,152.52,0.05010459]
[1724462802334,3.2746,152.56,152.53,3.2752]
[1724462803031,1.2984,152.58,152.52,0.05010459]
[1724462803541,3.2745,152.56,152.53,3.2751]
[1724462805642,3.2744,152.57,152.53,3.2751]
[1724462808664,3.2741,152.58,152.54,3.2749]
[1724462809251,3.2741,152.58,152.54,3.32446218]
[1724462812252,20.12,152.59,152.54,0.04956218]
[1724462812452,20.12,152.57,152.54,0.04956218]
[1724462812844,23.3947,152.55,152.54,0.04956218]
[1724462813050,20.12,152.55,152.49,1.3069]
[1724462813352,3.2753,152.53,152.49,4.5828]
[1724462813747,3.2753,152.53,152.49,1.3069]
[1724462813955,3.31871985,152.53,152.49,1.35279869]
[1724462814749,0.04341985,152.53,152.5,3.2758]
[1724462816150,0.04341985,152.53,152.51,3.2755]
[1724462816449,0.04341985,152.53,152.5,3.30599006]
[1724462816654,0.04341985,152.53,152.5,20.12]
[1724462816856,0.04341985,152.53,152.51,6.59743697]
[1724462817351,0.04341985,152.53,152.51,3.32203697]
[1724462817942,0.04341985,152.53,152.5,20.12]
[1724462817943,0.04341985,152.53,152.52,3.2754]
[1724462818144,0.04341985,152.53,152.52,6.5010601]
[1724462820753,0.04341985,152.53,152.5,3.2758]
[1724462821849,0.04341985,152.53,152.51,3.2755]
[1724462823161,0.04341985,152.53,152.52,3.2754]
[1724462823659,0.04341985,152.53,152.51,3.2755]
[1724462825760,0.04341985,152.53,152.52,3.2754]
[1724462830354,0.04341985,152.53,152.51,3.2755]
[1724462830555,0.04341985,152.53,152.5,4.57970352]
[1724462830751,0.04341985,152.53,152.5,3.22610352]
[1724462831008,0.04341985,152.53,152.49,1.35279869]
[1724462831664,0.04341985,152.53,152.51,3.2756]
[1724462840167,0.04341985,152.53,152.52,3.2754]
[1724462845968,3.31079578,152.61,152.51,20.12]
[1724462846264,20.12,152.61,152.51,21.4126]
[1724462846458,3.2743,152.58,152.51,21.4126]
[1724462846871,3.2743,152.58,152.53,0.04941461]
[1724462848065,1.286,152.61,152.53,20.16941461]
[1724462848467,1.286,152.61,152.54,1.3642]
[1724462848665,1.286,152.61,152.55,20.12]
[1724462848869,1.286,152.61,152.56,0.04925577]
[1724462849371,3.2735,152.61,152.56,0.04925577]
[1724462850370,3.2735,152.61,152.57,3.2742]
[1724462851671,3.2735,152.61,152.58,3.2741]
[1724462854170,2.7257,152.67,152.6,3.2736]
[1724462854369,2.7257,152.67,152.62,0.04734122]
[1724462854370,3.31036573,152.66,152.62,0.04734122]
[1724462854766,3.2726,152.65,152.62,0.04734122]
[1724462856974,3.2726,152.65,152.62,3.32054122]
[1724462857479,3.2728,152.64,152.62,0.04734122]
[1724462858264,3.2726,152.65,152.62,0.04734122]
[1724462860980,6.02657294,152.67,152.62,0.04734122]
[1724462861483,3.2727,152.65,152.62,0.04734122]
[1724462862681,3.2728,152.64,152.62,0.04734122]
[1724462870091,3.273,152.63,152.62,0.04734122]
[1724462870296,0.04290242,152.63,152.56,20.12]
[1724462870798,3.2734,152.62,152.58,3.2739]
[1724462871289,3.2734,152.62,152.58,3.31709921]
[1724462872698,0.04290242,152.63,152.58,3.31709921]
[1724462873397,3.2733,152.62,152.58,3.31709921]
[1724462873585,3.2733,152.62,152.59,3.2739]
[1724462874693,0.04290242,152.63,152.58,0.04319921]
[1724462875301,3.2735,152.61,152.58,0.04319921]
[1724462877303,3.2735,152.61,152.58,3.31719921]
[1724462878302,3.2735,152.61,152.58,0.04319921]
[1724462879597,0.04290242,152.63,152.58,0.04319921]
[1724462880404,3.2736,152.61,152.58,0.04319921]
[1724462886707,0.04290242,152.63,152.58,0.04319921]
[1724462887407,3.2735,152.61,152.58,0.04319921]
[1724462888202,3.2732,152.62,152.59,3.2738]
[1724462888413,0.04290242,152.63,152.59,3.2738]
[1724462889313,3.31610242,152.63,152.6,3.2736]
[1724462889604,0.04290242,152.63,152.6,3.2736]
[1724462890006,3.31590242,152.63,152.59,3.2738]
[1724462890402,3.31590242,152.63,152.58,0.04319921]
[1724462890403,0.04290242,152.63,152.58,0.04319921]
[1724462891407,3.2733,152.62,152.58,3.31709921]
[1724462892001,3.31600242,152.63,152.59,3.2737]
[1724462892703,3.31600242,152.63,152.59,23.3937]
[1724462894003,3.31600242,152.63,152.59,3.2737]
[1724462895101,0.04290242,152.63,152.58,3.31832468]
[1724462895303,0.04290242,152.63,152.59,1.2989]
[1724462895699,0.04290242,152.63,152.6,3.2735]
[1724462896506,0.04290242,152.63,152.61,3.2734]
[1724462901523,0.04290242,152.63,152.62,3.2732]
[1724462913025,0.04290242,152.63,152.59,1.2989]
[1724462913526,0.04290242,152.63,152.61,3.2732]
[1724462913730,0.04290242,152.63,152.59,1.2989]
[1724462915418,0.04290242,152.63,152.62,3.2732]
[1724462916050,0.04290242,152.63,152.59,1.2989]
[1724462916418,3.2733,152.62,152.58,3.31719921]
[1724462917015,3.2733,152.62,152.59,3.2738]
[1724462918826,3.2733,152.62,152.58,3.31719921]
[1724462920823,23.43600242,152.63,152.59,3.2738]
[1724462921723,3.2732,152.62,152.59,3.2738]
[1724462924130,3.31600242,152.63,152.59,3.2738]
[1724462925730,3.2733,152.62,152.58,0.04319921]
[1724462927330,3.2733,152.62,152.59,3.2738]
[1724462929537,3.2733,152.62,152.58,3.31719921]
[1724462932338,3.2734,152.61,152.58,3.31719921]
[1724462937037,3.2733,152.62,152.59,3.2738]
[1724462937242,0.04290242,152.63,152.59,3.2738]
[1724462937837,0.04290242,152.63,152.58,20.16319921]
[1724462939543,3.31590242,152.63,152.59,3.2738]
[1724462943245,3.31590242,152.63,152.6,3.2736]
[1724462946454,0.04290242,152.63,152.6,3.2736]
[1724462948455,0.04290242,152.63,152.58,3.34778366]
[1724462949357,0.04290242,152.63,152.6,3.2735]
[1724462950956,3.31600242,152.63,152.6,3.2735]
[1724462952155,3.31600242,152.63,152.59,3.2738]
[1724462952156,3.2733,152.62,152.59,3.2738]
[1724462953956,3.2734,152.61,152.58,3.31719921]
[1724462959360,0.04290242,152.63,152.58,0.04319921]
[1724462961157,3.2733,152.62,152.58,3.31729921]
[1724462962249,20.16290242,152.63,152.58,0.04319921]
[1724462964254,3.2736,152.61,152.58,0.04319921]
[1724462964755,3.2736,152.61,152.58,3.31729921]
[1724462965260,3.2736,152.61,152.58,0.04319921]
[1724462968765,20.16290242,152.63,152.58,0.04319921]
[1724462969656,3.2739,152.59,152.58,0.04319921]
[1724462979271,20.12,152.6,152.51,1.2735]
[1724462979468,20.12,152.57,152.51,1.2735]
[1724462980069,3.32294292,152.56,152.52,3.32435368]
[1724462980372,0.04824292,152.56,152.52,3.32435368]
[1724462980668,3.2749,152.55,152.52,0.04915368]
[1724462980867,0.04824292,152.56,152.52,0.04915368]
[1724462981566,3.2749,152.55,152.52,0.04915368]
[1724462987769,3.32284292,152.56,152.53,3.2751]
[1724462989871,3.2747,152.55,152.52,3.32445368]
[1724462990170,0.04824292,152.56,152.52,0.04915368]
[1724462990564,3.2748,152.55,152.52,0.04915368]
[1724462992073,3.275,152.54,152.52,0.04915368]
[1724462996776,0.04824292,152.56,152.52,0.04915368]
[1724462997879,3.32274292,152.56,152.52,3.32435368]
[1724462998975,3.2748,152.55,152.52,0.04915368]
[1724462999281,0.04824292,152.56,152.52,0.04915368]
[1724462999778,3.32284292,152.56,152.52,3.32435368]
[1724463000878,0.04824292,152.56,152.53,3.2751]
[1724463001174,0.04824292,152.56,152.52,0.04915368]
[1724463001379,3.32274292,152.56,152.52,3.32435368]
[1724463002979,3.2748,152.55,152.52,3.32435368]
[1724463003780,3.2748,152.55,152.52,0.04915368]
[1724463004382,3.32284292,152.56,152.52,3.32445368]
[1724463005077,0.04824292,152.56,152.53,3.2751]
[1724463008179,0.04824292,152.56,152.55,3.2747]
[1724463009476,0.04824292,152.56,152.55,4.6651]
[1724463015884,0.04824292,152.56,152.52,21.44715368]
[1724463016085,0.04824292,152.56,152.52,22.71265368]
[1724463016609,0.04824292,152.56,152.54,3.2748]
[1724463017005,0.04824292,152.56,152.52,22.71265368]
[1724463017186,0.04824292,152.56,152.55,3.2747]
[1724463018894,0.04824292,152.56,152.54,3.2748]
[1724463024782,0.04824292,152.56,152.55,3.2747]
[1724463038497,0.04824292,152.56,152.55,23.3947]
[1724463038703,21.4298,152.65,152.55,20.12]
[1724463039003,21.4298,152.65,152.58,20.12]
[1724463039204,3.2734,152.61,152.58,20.12]
[1724463039405,1.3098,152.65,152.58,20.12]
[1724463039705,3.31584562,152.63,152.6,0.04597104]
[1724463040206,0.04264562,152.63,152.6,0.04597104]
[1724463040407,0.04264562,152.63,152.6,20.16597104]
[1724463041094,3.2732,152.62,152.6,0.04597104]
[1724463045308,3.31574562,152.63,152.6,3.31957104]
[1724463045513,3.31574562,152.63,152.6,0.04597104]
[1724463046106,3.2732,152.62,152.6,0.04597104]
[1724463053712,3.31574562,152.63,152.6,0.04597104]
[1724463054114,3.2732,152.62,152.6,0.04597104]
[1724463059612,0.04264562,152.63,152.6,3.31957104]
[1724463061317,3.31564562,152.63,152.6,3.31957104]
[1724463061516,0.04264562,152.63,152.61,3.2734]
[1724463062018,0.04264562,152.63,152.62,3.2732]
[1724463066717,0.04264562,152.63,152.62,23.3932]
[1724463066919,20.12,152.78,152.62,40.24]
[1724463067118,20.12,152.78,152.69,20.12]
[1724463067119,24.58815967,152.78,152.69,20.12]
[1724463067319,3.2702,152.76,152.71,20.12]
[1724463067526,20.12,152.8,152.71,20.12]
[1724463067723,20.12,152.8,152.71,23.32935922]
[1724463067923,1.2541,152.79,152.74,0.04898466]
[1724463069128,3.2702,152.77,152.74,0.04898466]
[1724463069736,1.2541,152.79,152.74,0.04898466]
[1724463070735,3.2702,152.77,152.74,0.04898466]
[1724463073531,3.2702,152.77,152.75,20.12]
[1724463075035,4.5239,152.79,152.75,20.12]
[1724463075330,4.5239,152.79,152.77,20.12]
[1724463075736,3.2698,152.79,152.77,20.12]
[1724463075934,20.12,152.8,152.74,0.04898466]
[1724463077837,3.2704,152.75,152.74,0.04898466]
[1724463079538,3.2711,152.72,152.7,26.16]
[1724463081244,0.0451306,152.73,152.7,26.16]
[1724463081441,3.2713,152.71,152.7,26.16]
[1724463082839,0.0451306,152.73,152.7,26.16]
[1724463083041,3.3161306,152.73,152.7,26.16]
[1724463083542,3.2711,152.72,152.7,26.16]
[1724463087042,3.2713,152.71,152.7,26.16]
[1724463093145,3.2715,152.7,152.69,0.04333496]
[1724463095352,3.2714,152.71,152.69,0.04333496]
[1724463101853,3.2712,152.72,152.69,3.31503496]
[1724463102546,3.2714,152.71,152.69,0.04333496]
[1724463108651,3.2715,152.7,152.69,0.04333496]
[1724463109059,20.12,152.72,152.63,3.2728]
[1724463109456,1.3506,152.71,152.63,3.2728]
[1724463109964,3.2721,152.68,152.64,3.2728]
[1724463110158,0.04261721,152.68,152.64,3.31619303]
[1724463111153,0.04261721,152.68,152.65,3.2725]
[1724463118363,0.04261721,152.68,152.66,3.2723]
[1724463119367,0.04261721,152.68,152.65,4.529]
[1724463119770,3.31451721,152.68,152.65,4.529]
[1724463120159,0.04261721,152.68,152.65,4.529]
[1724463120872,0.04261721,152.68,152.65,1.2565]
[1724463122267,3.2722,152.67,152.65,1.2565]
[1724463122468,3.2722,152.67,152.64,3.31609303]
[1724463126574,3.2722,152.67,152.64,0.04339303]
[1724463129176,3.2725,152.66,152.64,0.04339303]
[1724463129481,0.04261721,152.68,152.64,0.04339303]
[1724463129782,3.2726,152.65,152.64,0.04339303]
[1724463130077,23.36766393,152.65,152.59,1.3314]
[1724463130280,3.2736,152.6,152.59,1.3314]
[1724463130479,3.2736,152.6,152.57,66.77128201]
[1724463130871,3.2739,152.59,152.54,20.12]
[1724463131074,0.0453859,152.58,152.55,0.04603084]
[1724463131678,0.0453859,152.58,152.55,3.32073084]
[1724463153289,3.3194859,152.58,152.55,0.04603084]
[1724463153799,3.2743,152.57,152.55,0.04603084]
[1724463154893,3.2745,152.56,152.55,0.04603084]
[1724463157396,3.2744,152.57,152.55,0.04603084]
[1724463158194,3.2745,152.56,152.55,0.04603084]
[1724463162103,20.1653859,152.58,152.47,1.2838]
[1724463162302,20.12,152.54,152.47,1.2838]
[1724463162604,3.28787296,152.53,152.47,1.2838]
[1724463162809,3.2757,152.51,152.47,1.2838]
[1724463163096,3.2757,152.51,152.47,1.33003572]
[1724463163304,3.2758,152.5,152.47,1.33003572]
[1724463167310,3.2758,152.5,152.47,0.04623572]
[1724463170403,0.04944609,152.51,152.47,0.04623572]
[1724463170607,0.04944609,152.51,152.47,20.16623572]
[1724463172401,3.32504609,152.51,152.48,3.2761]
[1724463176819,3.32504609,152.51,152.47,0.04623572]
[1724463177014,3.32504609,152.51,152.47,3.32263572]
[1724463182223,3.32504609,152.51,152.48,3.2761]
[1724463184526,3.32504609,152.51,152.43,1.3642]
[1724463184527,20.12,152.49,152.32,6.5593]
[1724463184730,3.33841295,152.48,152.4,3.35413546]
[1724463185232,3.2768,152.46,152.42,3.2775]
[1724463185420,3.33841295,152.48,152.42,3.2775]
[1724463185622,0.04887885,152.47,152.43,0.04550402]
[1724463185827,3.277,152.45,152.43,0.04550402]
[1724463186047,0.04887885,152.47,152.43,0.04550402]
[1724463186230,3.2771,152.44,152.43,0.04550402]
[1724463192339,3.278,152.41,152.37,3.2787]
[1724463193440,3.32112951,152.41,152.37,3.32743568]
[1724463194838,20.16312951,152.41,152.37,0.04873568]
[1724463195938,3.2782,152.4,152.37,0.04873568]
[1724463196942,3.2784,152.39,152.37,0.04873568]
[1724463197139,20.16312951,152.41,152.37,0.04873568]
[1724463197644,3.2783,152.4,152.37,0.04873568]
[1724463199333,20.16312951,152.41,152.37,0.04873568]
[1724463199334,3.2785,152.39,152.37,0.04873568]
[1724463200646,20.12,152.39,152.37,0.04873568]
[1724463202347,23.3986,152.39,152.37,0.04873568]
[1724463203945,3.2786,152.39,152.37,0.04873568]
[1724463208855,3.2786,152.38,152.37,0.04873568]
[1724463209936,3.2785,152.39,152.37,0.04873568]
[1724463210143,20.16312951,152.41,152.37,0.04873568]
[1724463211952,3.2782,152.4,152.37,0.04873568]
[1724463212867,3.32122951,152.41,152.37,3.32753568]
[1724463213062,0.04312951,152.41,152.37,0.04873568]
[1724463213259,3.20607695,152.4,152.37,0.04873568]
[1724463215162,20.16312951,152.41,152.37,0.04873568]
[1724463216566,3.2786,152.38,152.37,0.04873568]
[1724463216866,6.54795262,152.38,152.37,0.04873568]
[1724463221767,3.2786,152.38,152.37,0.04873568]
[1724463223672,3.2786,152.39,152.37,0.04873568]
[1724463224771,3.2782,152.4,152.37,0.04873568]
[1724463224968,0.04312951,152.41,152.37,0.04873568]
[1724463225767,0.04312951,152.41,152.37,3.32733568]
[1724463227370,3.32122951,152.41,152.37,3.32733568]
[1724463228173,3.2782,152.4,152.37,0.04873568]
[1724463230275,0.04312951,152.41,152.37,0.04873568]
[1724463231369,0.04312951,152.41,152.4,3.2782]
[1724463231570,23.3968,152.47,152.38,1.2571]
[1724463231778,3.2768,152.47,152.39,20.12]
[1724463232275,3.2768,152.47,152.42,3.2776]
[1724463232675,0.04744558,152.46,152.43,0.05043821]
[1724463234468,0.04744558,152.46,152.43,3.32783821]
[1724463235073,0.04744558,152.46,152.44,3.2773]
[1724463235481,0.04744558,152.46,152.44,1.366]
[1724463235776,23.32427,152.53,152.47,3.2766]
[1724463235971,20.12,152.53,152.47,3.2766]
[1724463236167,23.42127971,152.53,152.47,3.2766]
[1724463236366,1.2673,152.54,152.46,20.12]
[1724463236574,4.53056239,152.54,152.46,20.12]
[1724463236781,0.04516761,152.52,152.48,0.04810564]
[1724463237173,0.04516761,152.52,152.48,3.32450564]
[1724463238974,3.32076761,152.52,152.48,3.32450564]
[1724463239179,0.04516761,152.52,152.49,3.2761]
[1724463240273,3.32086761,152.52,152.48,0.04810564]
[1724463240478,0.04516761,152.52,152.48,0.04810564]
[1724463240875,0.04516761,152.52,152.48,3.32440564]
[1724463243887,0.04516761,152.52,152.48,0.04810564]
[1724463245288,3.2758,152.51,152.48,0.04810564]
[1724463252295,3.2762,152.49,152.48,0.04810564]
[1724463253693,3.2761,152.5,152.48,0.04810564]
[1724463256891,3.2762,152.49,152.48,0.04810564]
[1724463261698,23.3962,152.49,152.48,0.04810564]
[1724463261904,3.2769,152.46,152.42,3.2777]
[1724463262899,3.32030491,152.46,152.42,3.32755501]
[1724463265195,3.2771,152.45,152.42,0.04985501]
[1724463266203,3.2773,152.44,152.42,0.04985501]
[1724463266604,0.04340491,152.46,152.42,0.04985501]
[1724463266605,3.2775,152.43,152.42,0.04985501]
[1724463266906,23.3975,152.43,152.42,0.04985501]
[1724463267106,3.2784,152.39,152.35,1.2692]
[1724463267306,20.12,152.41,152.35,1.2692]
[1724463268096,3.2783,152.4,152.35,1.2692]
[1724463268303,20.16675939,152.41,152.37,26.26378337]
[1724463269414,3.2785,152.39,152.37,26.26378337]
[1724463274120,3.2785,152.39,152.37,0.04378337]
[1724463276621,23.3986,152.38,152.37,0.04378337]
[1724463276825,26.7103562,152.38,152.37,0.04378337]
[1724463282124,3.2796,152.34,152.3,1.3393]
[1724463282331,20.12,152.35,152.3,1.3393]
[1724463283330,0.04936669,152.34,152.31,0.04670493]
[1724463284330,3.32886669,152.34,152.31,0.04670493]
[1724463284930,0.04936669,152.34,152.31,0.04670493]
[1724463286132,3.32886669,152.34,152.31,0.04670493]
[1724463286328,0.04936669,152.34,152.31,0.04670493]
[1724463286729,3.2797,152.33,152.31,0.04670493]
[1724463287728,3.32886669,152.34,152.31,0.04670493]
[1724463288229,3.2797,152.33,152.31,0.04670493]
[1724463293437,3.2799,152.32,152.31,0.04670493]
[1724463296543,3.2798,152.33,152.31,0.04670493]
[1724463297739,0.04936669,152.34,152.31,0.04670493]
[1724463299342,3.2797,152.33,152.31,0.04670493]
[1724463300238,0.04936669,152.34,152.31,0.04670493]
[1724463300836,3.2798,152.33,152.31,0.04670493]
[1724463302242,3.2799,152.32,152.31,0.04670493]
[1724463313051,20.12,152.28,152.22,1.3765]
[1724463313453,3.2811,152.27,152.22,1.3765]
[1724463313854,0.043527,152.26,152.23,3.32920432]
[1724463315054,20.163527,152.26,152.23,0.04750432]
[1724463315353,0.043527,152.26,152.23,0.04750432]
[1724463316850,0.043527,152.26,152.23,1.30810432]
[1724463318361,3.324727,152.26,152.23,1.30810432]
[1724463319953,0.043527,152.26,152.23,4.58990432]
[1724463320852,0.043527,152.26,152.23,1.30810432]
[1724463321057,20.12,152.3,152.23,1.30810432]
[1724463321359,20.12,152.3,152.24,2.6904]
[1724463321951,23.46980001,152.32,152.24,2.6904]
[1724463322152,0.04533716,152.3,152.26,0.04362693]
[1724463322356,20.16533716,152.3,152.26,0.04362693]
[1724463323659,20.12,152.28,152.26,0.04362693]
[1724463324157,3.281,152.27,152.26,0.04362693]
[1724463325559,23.401,152.27,152.26,0.04362693]
[1724463328261,3.2817,152.24,152.2,2.535]
[1724463329257,3.3301155,152.24,152.2,5.86411855]
[1724463329483,3.3301155,152.24,152.2,4.59281855]
[1724463330564,3.2819,152.23,152.2,1.31041855]
[1724463330860,0.0484155,152.24,152.2,1.31041855]
[1724463331258,20.12,152.23,152.2,0.04671855]
[1724463331966,3.2823,152.21,152.2,0.04671855]
[1724463332766,23.4023,152.21,152.2,0.04671855]
[1724463334568,20.12,152.21,152.08,26.24]
[1724463334868,20.12,152.19,152.08,47.6846]
[1724463335070,3.2833,152.17,152.12,3.2842]
[1724463335566,3.2833,152.17,152.09,2.7001]
[1724463335567,0.04182745,152.16,152.13,0.047598]
[1724463337063,3.32532745,152.16,152.13,0.047598]
[1724463337669,3.32532745,152.16,152.13,3.331598]
[1724463337971,0.04182745,152.16,152.13,0.047598]
[1724463338669,3.32532745,152.16,152.13,0.047598]
[1724463339270,0.04182745,152.16,152.13,0.047598]
[1724463339868,0.04182745,152.16,152.14,3.2836]
[1724463340063,0.04182745,152.16,152.13,0.047598]
[1724463340468,0.04182745,152.16,152.15,3.2836]
[1724463340974,3.2823,152.21,152.17,3.2829]
[1724463341872,3.32706358,152.21,152.17,3.32465737]
[1724463342874,40.24,152.18,151.92,69.93060899]
[1724463343179,20.12,152.14,152.04,20.12]
[1724463343371,3.284,152.13,152.05,1.3857]
[1724463343879,20.12,152.14,152.05,1.3857]